[Event "Portugal Open 2020"]
[Site "Lisbon"]
[Date "2020.01.25"]
[Round "1.6"]
[White "Ghazarian, Tigran"]
[Black "Hendrix, Joachim"]
[Result "1-0"]
[ECO "B06"]
[WhiteElo "1668"]
[BlackElo "1868"]
[Annotator "NA"]
[PlyCount "59"]
[EventDate "2020.01.25"]
[EventType "swiss"]
[EventCountry "POR"]
[SourceTitle "playchess.com"]
[Source "ChessBase"]
[SourceQuality "1"]
[TimeControl "5400+30"]

1. e4 {[%emt 0:00:00]} g6 {[%emt 0:00:00]} 2. d4 {[%emt 0:00:00]} Bg7 {[%emt 0:00:00]} 3. Nf3 {[%emt 0:00:01]} d6 {[%emt 0:00:00]} 4. Bc4 {[%emt 0:00:12]} Nc6 {[%emt 0:00:00]} 5. O-O {[%emt 0:05:13]} Nf6 {[%emt 0:01:40]} 6. Qe2 {[%emt 0:00:57]} Bg4 {[%emt 0:03:05]} 7. Rd1 {[%emt 0:00:41]} e5 {[%emt 0:03:18]} 8. c3 {[%emt 0:00:43]} O-O {[%emt 0:02:11]} 9. h3 {[%emt 0:00:26]} Bxf3 {[%emt 0:01:36]} 10. Qxf3 {[%emt 0:00:05]} Nd7 {[%emt 0:01:29]} 11. Be3 {[%emt 0:00:07]} Kh8 {[%emt 0:00:41]} 12. Qg3 {[%emt 0:01:37]} Nf6 {[%emt 0:06:57]} 13. Qh4 {[%emt 0:28:46]} exd4 {[%emt 0:22:01]} 14. Bg5 {[%emt 0:00:51]} Ne5 {[%emt 0:15:33]} 15. Be2 {[%emt 0:00:29]} c5 {[%emt 0:07:47]} 16. cxd4 {[%emt 0:01:11]} cxd4 {[%emt 0:00:12]} 17. Rxd4 {[%emt 0:00:21]} Qb6 {[%emt 0:03:49]} 18. Rd2 {[%emt 0:00:15]} Ned7 {[%emt 0:03:03]} 19. Nc3 {[%emt 0:02:34]} Kg8 {[%emt 0:13:17]} 20. Qg3 {[%emt 0:07:25]} h6 {[%emt 0:04:15]} 21. Be3 {[%emt 0:01:44]} Qb4 {[%emt 0:04:40]} 22. Qxd6 Qxd6 {[%emt 0:00:20]} 23. Rxd6 {[%emt 0:00:50]} Rfe8 {[%emt 0:01:20]} 24. Rad1 {[%emt 0:00:05]} Nb6 {[%emt 0:00:21]} 25. f3 {[%emt 0:01:54]} Nh5 {[%emt 0:01:46]} 26. g4 {[%emt 0:00:43]} Ng3 {[%emt 0:00:18]} 27. Bb5 {[%emt 0:00:47]} Rec8 {[%emt 0:00:28]} 28. Bf4 {[%emt 0:00:22]} Bf8 {[%emt 0:00:20]} 29. R6d2 {[%emt 0:02:04]} a6 {[%emt 0:00:53]} 30. Bd3 {[%emt 0:00:05]} 1-0

[Event "Portugal Open 2020"]
[Site "Lisbon"]
[Date "2020.01.25"]
[Round "1.7"]
[White "Morais, Vitor"]
[Black "Iturrizaga Bonelli, Eduardo"]
[Result "0-1"]
[ECO "A05"]
[WhiteElo "1864"]
[BlackElo "2597"]
[Annotator "ChessBase"]
[PlyCount "68"]
[EventDate "2020.01.25"]
[EventType "swiss"]
[EventCountry "POR"]
[SourceTitle "playchess.com"]
[Source "ChessBase"]
[SourceQuality "1"]
[TimeControl "5400+30"]

1. Nf3 {[%emt 0:00:00]} Nf6 2. g3 {[%emt 0:00:00]} b6 {[%emt 0:07:54]} 3. Bg2 {[%emt 0:00:00]} Bb7 {[%emt 0:00:05]} 4. O-O {[%emt 0:00:00]} g6 {[%emt 0:00:13]} 5. d4 {[%emt 0:00:03]} Bg7 {[%emt 0:00:07]} 6. c4 {[%emt 0:00:08]} O-O {[%emt 0:00:19]} 7. Nc3 {[%emt 0:00:45]} Ne4 {[%emt 0:00:23]} 8. Qc2 {[%emt 0:01:42]} Nxc3 {[%emt 0:00:35]} 9. bxc3 {[%emt 0:00:12]} Nc6 {[%emt 0:01:10]} 10. Nd2 {[%emt 0:00:31]} Qc8 {[%emt 0:00:44]} 11. Ba3 {[%emt 0:02:15]} d6 {[%emt 0:01:28]} 12. Nb3 {[%emt 0:01:45]} Nd8 {[%emt 0:03:14]} 13. e4 {[%emt 0:03:40]} c5 {[%emt 0:00:01]} 14. dxc5 {[%emt 0:01:16]} dxc5 {[%emt 0:00:17]} 15. Rfd1 {[%emt 0:00:25]} Qe6 {[%emt 0:00:39]} 16. Rd5 {[%emt 0:03:51]} Bxd5 {[%emt 0:00:22]} 17. cxd5 {[%emt 0:00:08]} Qd7 {[%emt 0:00:04]} 18. Rd1 {[%emt 0:01:11]} Qa4 {[%emt 0:00:24]} 19. Bb2 {[%emt 0:01:55]} Nb7 {[%emt 0:00:20]} 20. Rc1 {[%emt 0:19:51]} Nd6 {[%emt 0:00:17]} 21. Nd2 {[%emt 0:00:27]} Qxc2 {[%emt 0:05:25]} 22. Rxc2 {[%emt 0:00:09]} f5 {[%emt 0:00:03]} 23. exf5 {[%emt 0:03:42]} gxf5 {[%emt 0:00:08]} 24. f4 {[%emt 0:00:22]} b5 {[%emt 0:00:31]} 25. Bf1 {[%emt 0:03:42]} c4 {[%emt 0:04:01]} 26. Ba3 {[%emt 0:01:42]} a5 {[%emt 0:08:27]} 27. Bxd6 {[%emt 0:00:50]} exd6 {[%emt 0:00:05]} 28. Nf3 {[%emt 0:00:48]} Rfc8 {[%emt 0:01:02]} 29. Bh3 {[%emt 0:01:07]} b4 {[%emt 0:00:05]} 30. cxb4 {[%emt 0:01:06]} axb4 31. Bxf5 Rc5 {[%emt 0:04:07]} 32. Nd2 {[%emt 0:03:23]} Bc3 {[%emt 0:01:44]} 33. Ne4 {[%emt 0:03:50]} Bd4+ {[%emt 0:00:07]} 34. Kg2 {[%emt 0:01:56]} b3 {[%emt 0:00:01]} 0-1

[Event "Portugal Open 2020"]
[Site "Lisbon"]
[Date "2020.01.25"]
[Round "1.8"]
[White "Petrov, Nikita"]
[Black "Marcos Herrero, Francisco"]
[Result "1-0"]
[ECO "A35"]
[WhiteElo "2592"]
[BlackElo "1861"]
[Annotator "ChessBase"]
[PlyCount "43"]
[EventDate "2020.01.25"]
[EventType "swiss"]
[EventCountry "POR"]
[SourceTitle "playchess.com"]
[Source "ChessBase"]
[SourceQuality "1"]
[TimeControl "5400+30"]

1. c4 {[%emt 0:00:00]} c5 {[%emt 0:07:27]} 2. Nc3 {[%emt 0:00:06]} Nc6 {[%emt 0:00:13]} 3. Nf3 {[%emt 0:00:27]} g6 {[%emt 0:00:09]} 4. e3 {[%emt 0:00:11]} Bg7 {[%emt 0:00:25]} 5. d4 {[%emt 0:00:20]} cxd4 {[%emt 0:05:15]} 6. exd4 {[%emt 0:00:07]} d6 {[%emt 0:00:07]} 7. Be2 {[%emt 0:01:30]} Nf6 {[%emt 0:00:17]} 8. d5 {[%emt 0:00:17]} Nb8 {[%emt 0:00:15]} 9. O-O {[%emt 0:00:51]} O-O {[%emt 0:00:09]} 10. h3 {[%emt 0:04:16]} Nbd7 {[%emt 0:03:46]} 11. Be3 {[%emt 0:02:23]} a5 {[%emt 0:02:18]} 12. Re1 {[%emt 0:01:08]} Nc5 {[%emt 0:00:14]} 13. Bf1 {[%emt 0:01:15]} Bd7 {[%emt 0:00:29]} 14. Bd4 {[%emt 0:01:55]} Re8 {[%emt 0:00:33]} 15. Qd2 {[%emt 0:01:09]} a4 {[%emt 0:03:22]} 16. Re2 {[%emt 0:08:00]} Qa5 {[%emt 0:06:04]} 17. Rae1 {[%emt 0:03:17]} Kf8 {[%emt 0:05:16]} 18. Ng5 {[%emt 0:04:44]} Rac8 {[%emt 0:02:28]} 19. Re3 {[%emt 0:08:39]} h6 {[%emt 0:07:17]} 20. Nf3 {[%emt 0:01:14]} e5 {[%emt 0:03:58]} 21. dxe6 {[%emt 0:01:58]} Nxe6 {[%emt 0:00:50]} 22. Bxf6 {[%emt 0:02:54]} 1-0

[Event "Portugal Open 2020"]
[Site "Lisbon"]
[Date "2020.01.25"]
[Round "1.9"]
[White "Coelho, Pedro Rodrigo Dias"]
[Black "Asadli, Vugar"]
[Result "0-1"]
[ECO "A04"]
[WhiteElo "1856"]
[BlackElo "2538"]
[Annotator "ChessBase"]
[PlyCount "48"]
[EventDate "2020.01.25"]
[EventType "swiss"]
[EventCountry "POR"]
[SourceTitle "playchess.com"]
[Source "ChessBase"]
[SourceQuality "1"]
[TimeControl "5400+30"]

1. Nf3 {[%emt 0:00:00]} g6 {[%emt 0:01:16]} 2. c3 {[%emt 0:01:21]} Bg7 {[%emt 0:01:40]} 3. d4 {[%emt 0:02:08]} d6 {[%emt 0:01:13]} 4. e4 {[%emt 0:03:09]} Nd7 {[%emt 0:01:15]} 5. Qc2 {[%emt 0:09:47]} b6 {[%emt 0:01:08]} 6. Bg5 {[%emt 0:06:15]} Bb7 {[%emt 0:00:16]} 7. Nbd2 {[%emt 0:00:45]} h6 {[%emt 0:02:21]} 8. Bh4 {[%emt 0:00:15]} g5 {[%emt 0:01:11]} 9. Bg3 {[%emt 0:00:06]} e6 {[%emt 0:00:05]} 10. Bd3 {[%emt 0:10:29]} Qe7 {[%emt 0:01:28]} 11. O-O-O {[%emt 0:10:36]} Ngf6 {[%emt 0:02:25]} 12. h3 {[%emt 0:07:10]} Nh5 {[%emt 0:02:17]} 13. Bh2 {[%emt 0:08:47]} Nf4 {[%emt 0:00:34]} 14. Rhe1 {[%emt 0:11:39]} Nxd3+ {[%emt 0:04:41]} 15. Qxd3 {[%emt 0:00:05]} O-O-O {[%emt 0:01:51]} 16. Nb3 {[%emt 0:12:09]} h5 {[%emt 0:00:15]} 17. Kb1 {[%emt 0:07:15]} Rhe8 {[%emt 0:02:28]} 18. Nfd2 {[%emt 0:01:49]} g4 {[%emt 0:00:08]} 19. hxg4 {[%emt 0:01:37]} hxg4 {[%emt 0:00:02]} 20. Qg3 {[%emt 0:01:21]} Rh8 {[%emt 0:00:36]} 21. Rh1 {[%emt 0:00:14]} Rh4 {[%emt 0:00:39]} 22. f4 {[%emt 0:00:32]} Rdh8 {[%emt 0:00:27]} 23. Ka1 {[%emt 0:00:40]} Qf6 {[%emt 0:01:23]} 24. a4 {[%emt 0:03:17]} Qh6 {[%emt 0:00:35]} 0-1

[Event "Portugal Open 2020"]
[Site "Lisbon"]
[Date "2020.01.25"]
[Round "1.11"]
[White "Leao, Tiago Miguel Da Silv"]
[Black "Ten Hertog, Hugo"]
[Result "0-1"]
[ECO "B06"]
[WhiteElo "2136"]
[BlackElo "2503"]
[Annotator "ChessBase"]
[PlyCount "62"]
[EventDate "2020.01.25"]
[EventType "swiss"]
[EventCountry "POR"]
[SourceTitle "playchess.com"]
[Source "ChessBase"]
[SourceQuality "1"]
[TimeControl "5400+30"]

1. e4 {[%emt 0:00:00]} g6 {[%emt 0:00:00]} 2. d4 {[%emt 0:00:30]} Bg7 {[%emt 0:00:00]} 3. Nc3 {[%emt 0:03:29]} a6 {[%emt 0:00:00]} 4. Be3 {[%emt 0:03:03]} b5 {[%emt 0:00:14]} 5. a3 {[%emt 0:07:50]} Bb7 {[%emt 0:00:28]} 6. f3 {[%emt 0:01:57]} d6 {[%emt 0:02:03]} 7. Qd2 {[%emt 0:02:59]} Nd7 {[%emt 0:00:06]} 8. h4 {[%emt 0:02:40]} h6 {[%emt 0:03:40]} 9. Nge2 {[%emt 0:07:19]} Rc8 {[%emt 0:04:54]} 10. Ng3 {[%emt 0:05:13]} h5 {[%emt 0:04:00]} 11. Rd1 {[%emt 0:06:10]} c5 {[%emt 0:03:57]} 12. Be2 {[%emt 0:09:18]} cxd4 {[%emt 0:09:12]} 13. Bxd4 {[%emt 0:00:20]} Bxd4 {[%emt 0:02:12]} 14. Qxd4 {[%emt 0:00:25]} Ngf6 {[%emt 0:00:04]} 15. O-O {[%emt 0:07:41]} Qb6 {[%emt 0:11:25]} 16. Qxb6 {[%emt 0:04:33]} Nxb6 {[%emt 0:00:05]} 17. Bd3 {[%emt 0:00:59]} Nfd7 {[%emt 0:01:42]} 18. f4 {[%emt 0:01:13]} Nc4 {[%emt 0:08:12]} 19. Bxc4 {[%emt 0:02:01]} Rxc4 {[%emt 0:00:58]} 20. Rd3 {[%emt 0:03:35]} O-O {[%emt 0:05:45]} 21. b3 {[%emt 0:07:11]} Rc7 {[%emt 0:00:37]} 22. Nd5 {[%emt 0:01:52]} Bxd5 {[%emt 0:00:35]} 23. Rxd5 {[%emt 0:00:08]} Nf6 {[%emt 0:03:50]} 24. Rd2 {[%emt 0:00:34]} Rfc8 {[%emt 0:00:07]} 25. Rff2 {[%emt 0:00:12]} Rc3 {[%emt 0:00:18]} 26. e5 dxe5 {[%emt 0:02:50]} 27. fxe5 {[%emt 0:01:30]} Ng4 {[%emt 0:00:04]} 28. Ne4 {[%emt 0:01:57]} Re3 {[%emt 0:00:14]} 29. Rfe2 {[%emt 0:00:09]} Rxb3 {[%emt 0:01:13]} 30. g3 {[%emt 0:02:56]} Rxa3 {[%emt 0:00:40]} 31. e6 {[%emt 0:00:35]} f5 {[%emt 0:02:31]} 0-1

[Event "Portugal Open 2020"]
[Site "Lisbon"]
[Date "2020.01.25"]
[Round "1.12"]
[White "Spraggett, Kevin"]
[Black "Tieres, Cristiano"]
[Result "1-0"]
[ECO "E71"]
[WhiteElo "2501"]
[BlackElo "1852"]
[Annotator "ChessBase"]
[PlyCount "82"]
[EventDate "2020.01.25"]
[EventType "swiss"]
[EventCountry "POR"]
[SourceTitle "playchess.com"]
[Source "ChessBase"]
[SourceQuality "1"]
[TimeControl "5400+30"]

1. c4 {[%emt 0:00:00]} Nf6 {[%emt 0:00:00]} 2. Nc3 {[%emt 0:00:00]} g6 {[%emt 0:00:04]} 3. e4 {[%emt 0:00:02]} d6 {[%emt 0:00:06]} 4. d4 {[%emt 0:00:08]} Bg7 {[%emt 0:00:04]} 5. h3 {[%emt 0:00:37]} O-O {[%emt 0:00:07]} 6. Nf3 {[%emt 0:00:32]} e5 {[%emt 0:00:16]} 7. d5 {[%emt 0:00:06]} a5 8. g4 {[%emt 0:00:25]} Na6 {[%emt 0:00:50]} 9. Be3 {[%emt 0:03:14]} Nd7 10. Rg1 Kh8 {[%emt 0:15:58]} 11. g5 {[%emt 0:02:35]} Ndc5 {[%emt 0:00:22]} 12. h4 {[%emt 0:02:42]} Bd7 {[%emt 0:06:24]} 13. Nd2 {[%emt 0:03:49]} c6 {[%emt 0:02:02]} 14. h5 {[%emt 0:01:11]} Kg8 {[%emt 0:00:56]} 15. Qf3 {[%emt 0:03:14]} a4 {[%emt 0:23:31]} 16. a3 {[%emt 0:00:30]} b5 {[%emt 0:00:30]} 17. dxc6 {[%emt 0:01:44]} b4 {[%emt 0:00:22]} 18. c7 {[%emt 0:05:32]} Nxc7 {[%emt 0:05:17]} 19. axb4 {[%emt 0:00:07]} N5e6 {[%emt 0:01:03]} 20. b5 {[%emt 0:04:44]} Nd4 {[%emt 0:00:07]} 21. Qd1 {[%emt 0:02:11]} d5 {[%emt 0:07:52]} 22. exd5 {[%emt 0:03:23]} Bf5 {[%emt 0:01:04]} 23. Nce4 {[%emt 0:03:36]} Qb8 {[%emt 0:01:57]} 24. Bd3 {[%emt 0:02:22]} Ne8 {[%emt 0:03:48]} 25. Ra3 {[%emt 0:03:34]} Nd6 {[%emt 0:00:14]} 26. h6 {[%emt 0:07:20]} Bh8 {[%emt 0:00:17]} 27. f3 {[%emt 0:00:15]} Rc8 {[%emt 0:01:30]} 28. Bf2 {[%emt 0:00:38]} Nb7 {[%emt 0:02:52]} 29. Rg3 {[%emt 0:02:25]} Nd6 {[%emt 0:00:44]} 30. Kf1 {[%emt 0:01:23]} Qc7 {[%emt 0:05:50]} 31. Kg2 {[%emt 0:01:16]} Bxe4 {[%emt 0:04:38]} 32. fxe4 {[%emt 0:00:44]} Nb7 {[%emt 0:00:16]} 33. Rxa4 {[%emt 0:02:03]} Nc5 {[%emt 0:00:32]} 34. Rxa8 {[%emt 0:00:26]} Rxa8 {[%emt 0:00:01]} 35. b4 {[%emt 0:00:29]} Na4 {[%emt 0:01:57]} 36. c5 {[%emt 0:00:30]} Nc3 {[%emt 0:00:30]} 37. Qg4 {[%emt 0:00:30]} Ra1 {[%emt 0:00:30]} 38. b6 {[%emt 0:00:30]} Qb8 {[%emt 0:00:30]} 39. Qd7 {[%emt 0:04:16]} Nce2 {[%emt 0:00:00]} 40. Bxe2 {[%emt 0:00:23]} Nxe2 {[%emt 0:00:01]} 41. b7 {[%emt 0:00:21]} Nf4+ {[%emt 0:00:12]} 1-0

[Event "Portugal Open 2020"]
[Site "Lisbon"]
[Date "2020.01.25"]
[Round "1.16"]
[White "Janik, Igor"]
[Black "Quintino, Luis Filipe Pires De"]
[Result "1-0"]
[ECO "B01"]
[WhiteElo "2453"]
[BlackElo "1839"]
[Annotator "ChessBase"]
[PlyCount "61"]
[EventDate "2020.01.25"]
[EventType "swiss"]
[EventCountry "POR"]
[SourceTitle "playchess.com"]
[Source "ChessBase"]
[SourceQuality "1"]
[TimeControl "5400+30"]

1. e4 {[%emt 0:00:00]} d5 {[%emt 0:00:00]} 2. exd5 {[%emt 0:00:00]} Qxd5 {[%emt 0:00:00]} 3. Nf3 {[%emt 0:00:00]} Bg4 {[%emt 0:00:00]} 4. Be2 {[%emt 0:00:00]} Nf6 {[%emt 0:00:00]} 5. d4 {[%emt 0:01:17]} e6 {[%emt 0:00:19]} 6. O-O {[%emt 0:00:23]} Be7 {[%emt 0:00:17]} 7. c4 {[%emt 0:00:14]} Qd8 {[%emt 0:00:28]} 8. Qb3 {[%emt 0:01:49]} Qc8 {[%emt 0:00:54]} 9. Nc3 {[%emt 0:00:40]} c6 {[%emt 0:00:36]} 10. Bf4 {[%emt 0:01:44]} O-O {[%emt 0:01:12]} 11. Rad1 {[%emt 0:03:59]} Rd8 {[%emt 0:04:38]} 12. h3 {[%emt 0:00:41]} Bxf3 {[%emt 0:18:09]} 13. Bxf3 {[%emt 0:00:08]} Na6 {[%emt 0:00:15]} 14. Rfe1 {[%emt 0:02:28]} Rd7 {[%emt 0:07:51]} 15. Be5 {[%emt 0:09:13]} Qd8 {[%emt 0:14:25]} 16. a3 {[%emt 0:02:07]} Qf8 {[%emt 0:13:15]} 17. Qa4 {[%emt 0:05:39]} Nc7 {[%emt 0:06:36]} 18. Re3 {[%emt 0:01:47]} Nfe8 {[%emt 0:03:10]} 19. d5 {[%emt 0:02:40]} exd5 {[%emt 0:03:33]} 20. cxd5 {[%emt 0:00:13]} b5 {[%emt 0:01:53]} 21. Qg4 {[%emt 0:00:50]} Rad8 {[%emt 0:03:49]} 22. dxc6 {[%emt 0:00:34]} f5 {[%emt 0:05:45]} 23. Qg3 {[%emt 0:00:46]} Rxd1+ {[%emt 0:00:10]} 24. Bxd1 {[%emt 0:00:06]} Bd6 {[%emt 0:01:41]} 25. Bb3+ {[%emt 0:00:49]} Kh8 {[%emt 0:00:04]} 26. Qh4 {[%emt 0:00:18]} Nf6 {[%emt 0:03:49]} 27. Bc2 {[%emt 0:02:32]} Bxe5 {[%emt 0:02:25]} 28. Rxe5 {[%emt 0:00:08]} g6 {[%emt 0:04:50]} 29. Nxb5 {[%emt 0:00:20]} Nxb5 {[%emt 0:00:50]} 30. Rxb5 {[%emt 0:00:03]} Qe7 {[%emt 0:01:56]} 31. c7 {[%emt 0:00:29]} 1-0

[Event "Portugal Open 2020"]
[Site "Lisbon"]
[Date "2020.01.25"]
[Round "1.17"]
[White "Elias, Ruben Joel Monteiro"]
[Black "Martin Duque, Jesus"]
[Result "0-1"]
[ECO "B44"]
[WhiteElo "1837"]
[BlackElo "2447"]
[Annotator "NA"]
[PlyCount "90"]
[EventDate "2020.01.25"]
[EventType "swiss"]
[EventCountry "POR"]
[SourceTitle "playchess.com"]
[Source "ChessBase"]
[SourceQuality "1"]
[TimeControl "5400+30"]

1. e4 {[%emt 0:00:00]} c5 {[%emt 0:00:00]} 2. Nf3 {[%emt 0:00:00]} e6 {[%emt 0:00:00]} 3. d4 {[%emt 0:00:00]} cxd4 {[%emt 0:00:00]} 4. Nxd4 {[%emt 0:00:00]} Nc6 {[%emt 0:00:00]} 5. c4 {[%emt 0:03:19]} Nf6 {[%emt 0:00:00]} 6. Nc3 {[%emt 0:00:09]} Bb4 {[%emt 0:00:00]} 7. Nxc6 {[%emt 0:00:19]} bxc6 {[%emt 0:00:00]} 8. Bd3 {[%emt 0:00:27]} e5 {[%emt 0:00:11]} 9. O-O {[%emt 0:00:28]} d6 {[%emt 0:00:30]} 10. Bg5 {[%emt 0:00:35]} O-O {[%emt 0:01:50]} 11. Qf3 {[%emt 0:03:47]} Be6 {[%emt 0:01:26]} 12. Bxf6 {[%emt 0:01:39]} Qxf6 {[%emt 0:00:03]} 13. Qxf6 {[%emt 0:00:21]} gxf6 {[%emt 0:00:02]} 14. Ne2 {[%emt 0:00:30]} Bc5 {[%emt 0:02:32]} 15. Ng3 {[%emt 0:01:00]} Rfb8 {[%emt 0:00:17]} 16. b3 {[%emt 0:00:40]} Kf8 {[%emt 0:00:17]} 17. Kh1 {[%emt 0:04:59]} a5 {[%emt 0:00:55]} 18. f4 {[%emt 0:25:38]} a4 {[%emt 0:00:17]} 19. fxe5 {[%emt 0:01:57]} fxe5 {[%emt 0:01:33]} 20. Rab1 {[%emt 0:05:48]} axb3 {[%emt 0:00:33]} 21. Rxb3 {[%emt 0:00:23]} Rd8 {[%emt 0:02:30]} 22. Rb7 {[%emt 0:07:37]} Rxa2 {[%emt 0:00:21]} 23. h3 {[%emt 0:01:15]} Ra3 {[%emt 0:03:11]} 24. Rf3 {[%emt 0:07:27]} Ra7 {[%emt 0:00:15]} 25. Rb1 {[%emt 0:03:31]} Rda8 {[%emt 0:00:14]} 26. Rbf1 {[%emt 0:01:33]} Ra1 {[%emt 0:00:17]} 27. Nf5 {[%emt 0:00:34]} Rxf1+ {[%emt 0:00:31]} 28. Rxf1 {[%emt 0:00:25]} Ra3 {[%emt 0:00:00]} 29. Be2 {[%emt 0:02:57]} Ra2 {[%emt 0:00:13]} 30. Bd3 {[%emt 0:02:17]} Rd2 {[%emt 0:00:11]} 31. Rf3 {[%emt 0:01:01]} Rd1+ {[%emt 0:04:41]} 32. Kh2 {[%emt 0:00:39]} Rc1 {[%emt 0:00:45]} 33. Ne3 {[%emt 0:05:35]} Bxe3 {[%emt 0:00:26]} 34. Rxe3 {[%emt 0:00:07]} Bxc4 {[%emt 0:00:11]} 35. Bxc4 {[%emt 0:01:03]} Rxc4 {[%emt 0:00:02]} 36. Kg3 {[%emt 0:00:24]} Ke7 {[%emt 0:00:01]} 37. Kf3 {[%emt 0:00:20]} Ke6 {[%emt 0:00:02]} 38. g4 {[%emt 0:00:52]} d5 {[%emt 0:00:34]} 39. exd5+ {[%emt 0:00:21]} cxd5 {[%emt 0:00:02]} 40. Ra3 {[%emt 0:00:24]} Rf4+ {[%emt 0:00:05]} 41. Ke3 {[%emt 0:00:35]} d4+ {[%emt 0:00:05]} 42. Ke2 {[%emt 0:00:16]} Kd5 {[%emt 0:00:07]} 43. Ra8 {[%emt 0:00:23]} Ke4 {[%emt 0:00:10]} 44. Rh8 {[%emt 0:00:23]} d3+ {[%emt 0:00:06]} 45. Ke1 {[%emt 0:00:30]} Ke3 {[%emt 0:00:04]} 0-1

[Event "Portugal Open 2020"]
[Site "Lisbon"]
[Date "2020.01.25"]
[Round "1.22"]
[White "Savanovic, Aleksandar"]
[Black "Trinkl, Stefan"]
[Result "1-0"]
[ECO "B15"]
[WhiteElo "2414"]
[BlackElo "1814"]
[Annotator "NA RC"]
[PlyCount "42"]
[EventDate "2020.01.25"]
[EventType "swiss"]
[EventCountry "POR"]
[SourceTitle "playchess.com"]
[Source "ChessBase"]
[SourceQuality "1"]
[TimeControl "5400+30"]

1. e4 {[%emt 0:00:00]} c6 {[%emt 0:00:00]} 2. d4 {[%emt 0:00:00]} d5 {[%emt 0:00:00]} 3. Nc3 {[%emt 0:00:00]} dxe4 {[%emt 0:00:03]} 4. Nxe4 {[%emt 0:00:00]} Nf6 {[%emt 0:00:16]} 5. Nxf6+ {[%emt 0:00:03]} exf6 {[%emt 0:00:11]} 6. c3 {[%emt 0:00:05]} Bd6 {[%emt 0:00:19]} 7. Bd3 {[%emt 0:00:07]} O-O {[%emt 0:00:18]} 8. Qc2 {[%emt 0:00:07]} Re8+ {[%emt 0:03:09]} 9. Ne2 {[%emt 0:00:07]} h6 {[%emt 0:00:20]} 10. O-O {[%emt 0:00:09]} Nd7 {[%emt 0:00:28]} 11. Bf4 {[%emt 0:09:42]} Nf8 {[%emt 0:05:27]} 12. Bxd6 {[%emt 0:02:05]} Qxd6 {[%emt 0:00:10]} 13. Rfe1 {[%emt 0:02:38]} Ne6 {[%emt 0:09:53]} 14. Ng3 {[%emt 0:07:30]} Qf8 {[%emt 0:02:54]} 15. Nh5 {[%emt 0:12:05]} Bd7 {[%emt 0:07:17]} 16. Re3 {[%emt 0:01:56]} Qe7 {[%emt 0:01:42]} 17. Rg3 {[%emt 0:10:32]} Kh8 {[%emt 0:01:54]} 18. Nxg7 {[%emt 0:01:24]} Nxg7 {[%emt 0:01:53]} 19. Qd2 {[%emt 0:00:24]} Nf5 {[%emt 0:00:38]} 20. Bxf5 {[%emt 0:00:19]} Bxf5 {[%emt 0:00:19]} 21. Qxh6+ {[%emt 0:00:06]} Bh7 {[%emt 0:00:46]} 1-0

[Event "Portugal Open 2020"]
[Site "Lisbon"]
[Date "2020.01.25"]
[Round "1.24"]
[White "Sousa, Andre Ventura"]
[Black "Avelino, Camila Biscaya"]
[Result "1-0"]
[ECO "A05"]
[WhiteElo "2391"]
[BlackElo "1802"]
[Annotator "NA RC"]
[PlyCount "53"]
[EventDate "2020.01.25"]
[EventType "swiss"]
[EventCountry "POR"]
[SourceTitle "playchess.com"]
[Source "ChessBase"]
[SourceQuality "1"]
[TimeControl "5400+30"]

1. Nf3 {[%emt 0:00:00]} Nf6 {[%emt 0:00:00]} 2. g3 {[%emt 0:00:13]} g6 {[%emt 0:00:27]} 3. Bg2 {[%emt 0:00:48]} Bg7 {[%emt 0:00:40]} 4. O-O {[%emt 0:00:13]} O-O {[%emt 0:00:33]} 5. d4 {[%emt 0:00:25]} d6 {[%emt 0:00:48]} 6. Nc3 {[%emt 0:00:06]} Nbd7 {[%emt 0:01:10]} 7. e4 {[%emt 0:00:49]} e5 {[%emt 0:11:44]} 8. h3 {[%emt 0:03:25]} exd4 {[%emt 0:09:42]} 9. Nxd4 {[%emt 0:00:07]} Nc5 {[%emt 0:03:42]} 10. Bf4 {[%emt 0:03:27]} Ne6 {[%emt 0:16:18]} 11. Nxe6 {[%emt 0:01:01]} fxe6 {[%emt 0:00:07]} 12. Qd2 {[%emt 0:16:26]} Nh5 {[%emt 0:03:39]} 13. Bg5 {[%emt 0:04:35]} Bf6 {[%emt 0:03:50]} 14. Bh6 {[%emt 0:01:29]} Bg7 {[%emt 0:00:37]} 15. Bg5 {[%emt 0:00:47]} Bf6 {[%emt 0:00:41]} 16. Be3 {[%emt 0:00:04]} e5 {[%emt 0:02:57]} 17. Nd5 {[%emt 0:00:39]} Bg7 {[%emt 0:00:33]} 18. Bg5 {[%emt 0:04:49]} Nf6 {[%emt 0:02:20]} 19. f4 {[%emt 0:02:11]} Be6 {[%emt 0:11:37]} 20. fxe5 {[%emt 0:01:30]} dxe5 {[%emt 0:04:05]} 21. Nxf6+ {[%emt 0:01:17]} Bxf6 {[%emt 0:00:21]} 22. Rxf6 {[%emt 0:00:11]} Rxf6 {[%emt 0:02:56]} 23. Qxd8+ {[%emt 0:00:04]} Rxd8 {[%emt 0:00:07]} 24. Bxf6 {[%emt 0:00:03]} Rd2 {[%emt 0:00:29]} 25. Rc1 {[%emt 0:01:10]} Bxa2 {[%emt 0:02:48]} 26. b3 {[%emt 0:00:08]} a5 {[%emt 0:00:05]} 27. Bg5 {[%emt 0:00:34]} 1-0

[Event "Portugal Open 2020"]
[Site "Lisbon"]
[Date "2020.01.25"]
[Round "1.25"]
[White "Curado, Manuel Joao Ferro"]
[Black "Vasli, Aref"]
[Result "0-1"]
[ECO "C45"]
[WhiteElo "1797"]
[BlackElo "2391"]
[Annotator "NA"]
[PlyCount "42"]
[EventDate "2020.01.25"]
[EventType "swiss"]
[EventCountry "POR"]
[SourceTitle "playchess.com"]
[Source "ChessBase"]
[SourceQuality "1"]
[TimeControl "5400+30"]

1. e4 {[%emt 0:00:00]} e5 {[%emt 0:00:00]} 2. Nf3 {[%emt 0:00:00]} Nc6 {[%emt 0:00:00]} 3. d4 {[%emt 0:00:41]} exd4 {[%emt 0:00:03]} 4. Nxd4 {[%emt 0:00:15]} Bc5 {[%emt 0:00:03]} 5. Be3 {[%emt 0:00:57]} Qf6 {[%emt 0:00:15]} 6. c3 {[%emt 0:01:46]} Nge7 {[%emt 0:00:11]} 7. Be2 {[%emt 0:10:35]} O-O {[%emt 0:03:12]} 8. O-O {[%emt 0:01:01]} d6 {[%emt 0:01:01]} 9. Kh1 {[%emt 0:12:46]} Bb6 {[%emt 0:04:47]} 10. Qd2 {[%emt 0:03:18]} Bd7 {[%emt 0:06:04]} 11. Na3 {[%emt 0:03:08]} Qg6 {[%emt 0:01:53]} 12. f3 {[%emt 0:05:53]} d5 {[%emt 0:09:41]} 13. Ndc2 {[%emt 0:18:27]} Be6 {[%emt 0:02:46]} 14. Bxb6 {[%emt 0:10:00]} axb6 {[%emt 0:00:11]} 15. exd5 {[%emt 0:01:07]} Nxd5 {[%emt 0:00:31]} 16. Nb5 {[%emt 0:03:27]} Rad8 {[%emt 0:03:13]} 17. Nbd4 {[%emt 0:03:40]} Nxd4 {[%emt 0:00:41]} 18. Nxd4 {[%emt 0:00:03]} Bc8 {[%emt 0:02:17]} 19. f4 {[%emt 0:13:09]} c5 {[%emt 0:02:23]} 20. Bd3 {[%emt 0:07:14]} Qh6 {[%emt 0:01:26]} 21. Ne2 {[%emt 0:01:35]} Nf6 {[%emt 0:01:17]} 0-1